lending/lending_fUSD_20251022
["ID","MTS","AMOUNT","RATE_DAILY","PERIOD"]
[392029027,1761109867090,-542.69,0.00032876,14]
[392029028,1761109867100,-825.52,0.00032876,14]
[392029029,1761109867117,-542.69,0.00032876,14]
[392029030,1761109867135,-825.52,0.00032876,14]
[392029031,1761109867144,-542.69,0.00032876,14]
[392029032,1761109867154,-825.52,0.00032876,14]
[392029033,1761109867164,-825.52,0.00032876,14]
[392029034,1761109867173,-542.69,0.00032876,14]
[392029035,1761109867183,-500.0,0.00032876,14]
[392029036,1761109867192,-825.52,0.00032876,14]
[392029037,1761109867202,-542.69,0.00032876,14]
[392029038,1761109867211,-500.0,0.00032876,14]
[392029039,1761109867222,-825.52,0.00032876,14]
[392029040,1761109867232,-1728.9,0.00032876,14]
[392029041,1761109867244,-542.69,0.00032876,14]
[392029042,1761109867254,-500.0,0.00032876,14]
[392029043,1761109867264,-825.52,0.00032876,14]
[392029044,1761109867274,-1728.9,0.00032876,14]
[392029045,1761109867284,-542.69,0.00032876,14]
[392029046,1761109867294,-705.96,0.00032876,14]
[392029047,1761109867303,-549.79,0.00032876,14]
[392029048,1761109867313,-500.0,0.00032876,14]
[392029049,1761109867324,-825.52,0.00032876,14]
[392029050,1761109867334,-542.69,0.00032876,14]
[392029051,1761109867344,-1728.9,0.00032876,14]
[392029052,1761109867354,-549.79,0.00032876,14]
[392029053,1761109867364,-705.96,0.00032876,14]
[392029054,1761109867374,-500.0,0.00032876,14]
[392029055,1761109867384,-1728.9,0.00032876,14]
[392029056,1761109867394,-542.69,0.00032876,14]
[392029057,1761109867404,-549.79,0.00032876,14]
[392029058,1761109867414,-705.96,0.00032876,14]
[392029059,1761109867423,-825.71014651,0.00032876,14]
[392029060,1761109867433,-549.79,0.00032876,14]
[392029061,1761109867442,-500.0,0.00032876,14]
[392029062,1761109867451,-542.69,0.00032876,14]
[392029063,1761109867460,-705.96,0.00032876,14]
[392029064,1761109867470,-1728.9,0.00032876,14]
[392029065,1761109867480,-549.79,0.00032876,14]
[392029066,1761109867489,-500.0,0.00032876,14]
[392029067,1761109867499,-542.69,0.00032876,14]
[392029068,1761109867510,-705.96,0.00032876,14]
[392029069,1761109867520,-1127.12,0.00032876,14]
[392029070,1761109867531,-1728.9,0.00032876,14]
[392029071,1761109867541,-549.79,0.00032876,14]
[392029072,1761109867551,-618.74653185,0.00032876,14]
[392029073,1761109867561,-542.69,0.00032876,14]
[392029074,1761109867571,-705.96,0.00032876,14]
[392029075,1761109867581,-1127.12,0.00032876,14]
[392029076,1761109867590,-1728.9,0.00032876,14]
[392029077,1761109867611,-549.79,0.00032876,14]
[392029078,1761109867628,-705.96,0.00032876,14]
[392029079,1761109867649,-542.69,0.00032876,14]
[392029080,1761109867669,-1127.12,0.00032876,14]
[392029081,1761109867685,-1728.9,0.00032876,14]
[392029082,1761109867704,-549.79,0.00032876,14]
[392029083,1761109867724,-705.96,0.00032876,14]
[392029084,1761109867742,-542.69,0.00032876,14]
[392029085,1761109867763,-1127.12,0.00032876,14]
[392029086,1761109867781,-1728.9,0.00032876,14]
[392029087,1761109867801,-549.79,0.00032876,14]
[392029088,1761109867817,-500.0,0.00032876,14]
[392029089,1761109867832,-705.96,0.00032876,14]
[392029090,1761109867851,-1127.12,0.00032876,14]
[392029091,1761109867865,-542.69,0.00032876,14]
[392029092,1761109867882,-1575.87,0.00032876,14]
[392029093,1761109867897,-1728.9,0.00032876,14]
[392029094,1761109867913,-549.79,0.00032876,14]
[392029095,1761109867929,-705.96,0.00032876,14]
[392029096,1761109867943,-500.0,0.00032876,14]
[392029097,1761109867959,-1127.12,0.00032876,14]
[392029098,1761109867974,-542.69,0.00032876,14]
[392029099,1761109867988,-1575.87,0.00032876,14]
[392029100,1761109868004,-1728.9,0.00032876,14]
[392029101,1761109868020,-500.0,0.00032876,14]
[392029102,1761109868035,-549.79,0.00032876,14]
[392029103,1761109868052,-705.96,0.00032876,14]
[392029104,1761109868067,-453.87935105,0.00032876,14]
[392029105,1761109868083,-542.69,0.00032876,14]
[392029106,1761109868098,-1127.12,0.00032876,14]
[392029107,1761109868113,-1575.87,0.00032876,14]
[392029108,1761109868130,-1728.9,0.00032876,14]
[392029109,1761109868148,-514.75678564,0.00032876,14]
[392029110,1761109868164,-549.79,0.00032876,14]
[392029111,1761109868181,-705.96,0.00032876,14]
[392029112,1761109868197,-542.77101604,0.00032876,14]
[392029113,1761109868213,-1127.12,0.00032876,14]
[392029114,1761109868228,-1575.87,0.00032876,14]
[392029115,1761109868243,-1728.9,0.00032876,14]
[392029116,1761109868258,-549.79,0.00032876,14]
[392029117,1761109868274,-1127.12,0.00032876,14]
[392029118,1761109868289,-705.96,0.00032876,14]
[392029119,1761109868303,-1728.9,0.00032876,14]
[392029120,1761109868322,-500.0,0.00032876,14]
[392029121,1761109868337,-549.79,0.00032876,14]
[392029122,1761109868352,-705.96,0.00032876,14]
[392029123,1761109868367,-1127.12,0.00032876,14]
[392029124,1761109868383,-1728.9,0.00032876,14]
[392029125,1761109868399,-1575.87,0.00032876,14]
[392029126,1761109868415,-500.0,0.00032876,14]
[392029127,1761109868431,-549.79,0.00032876,14]
[392029128,1761109868447,-705.96,0.00032876,14]
[392029129,1761109868463,-1728.9,0.00032876,14]
[392029130,1761109868478,-1575.87,0.00032876,14]
[392029131,1761109868494,-500.0,0.00032876,14]
[392029132,1761109868509,-705.96,0.00032876,14]
[392029133,1761109868525,-549.79,0.00032876,14]
[392029134,1761109868540,-1575.87,0.00032876,14]
[392029135,1761109868556,-500.0,0.00032876,14]
[392029136,1761109868571,-705.96,0.00032876,14]
[392029137,1761109868586,-549.79,0.00032876,14]
[392029138,1761109868601,-1575.87,0.00032876,14]
[392029139,1761109868617,-500.0,0.00032876,14]
[392029140,1761109868634,-705.96,0.00032876,14]
[392029141,1761109868650,-549.79,0.00032876,14]
[392029142,1761109868667,-500.0,0.00032876,14]
[392029143,1761109868684,-1575.87,0.00032876,14]
[392029144,1761109868701,-500.0,0.00032876,14]
[392029145,1761109868717,-705.96,0.00032876,14]
[392029146,1761109868733,-549.79,0.00032876,14]
[392029147,1761109868750,-500.0,0.00032876,14]
[392029148,1761109868766,-1728.9,0.00032876,14]
[392029149,1761109868781,-1575.87,0.00032876,14]
[392029150,1761109868796,-500.0,0.00032876,14]
[392029151,1761109868812,-500.0,0.00032876,14]
[392029152,1761109868828,-705.96,0.00032876,14]
[392029153,1761109868845,-549.79,0.00032876,14]
[392029154,1761109868861,-500.0,0.00032876,14]
[392029155,1761109868878,-1728.9,0.00032876,14]
[392029156,1761109868893,-500.0,0.00032876,14]
[392029157,1761109868909,-1575.87,0.00032876,14]
[392029158,1761109868927,-500.0,0.00032876,14]
[392029159,1761109868942,-500.0,0.00032876,14]
[392029160,1761109868952,-705.96,0.00032876,14]
[392029161,1761109868962,-500.0,0.00032876,14]
[392029162,1761109869194,-1728.9,0.00032876,14]
[392029163,1761109869206,-549.79,0.00032876,14]
[392029164,1761109869216,-1575.87,0.00032876,14]
[392029165,1761109869227,-500.0,0.00032876,14]
[392029166,1761109869237,-1127.12,0.00032876,14]
[392029167,1761109869247,-500.0,0.00032876,14]
[392029168,1761109869257,-500.0,0.00032876,14]
[392029169,1761109869268,-500.0,0.00032876,14]
[392029170,1761109869279,-705.96,0.00032876,14]
[392029171,1761109869289,-500.0,0.00032876,14]
[392029172,1761109869298,-329.41296172,0.00032876,14]
[392029173,1761109870754,-1246.45703828,0.00032876,14]
[392029174,1761109870764,-1728.9,0.00032876,14]
[392029175,1761109870774,-549.79,0.00032876,14]
[392029176,1761109870784,-500.0,0.00032876,14]
[392029177,1761109870794,-1127.12,0.00032876,14]
[392029178,1761109870804,-500.0,0.00032876,14]
[392029179,1761109870814,-500.0,0.00032876,14]
[392029180,1761109870823,-462.8354135,0.00032876,14]
[392029181,1761109871039,-352.17713,0.00026432,2]
[392029182,1761109871056,-455.31437972,0.00026432,2]
[392029186,1761109925409,200.0,0.00034274,30]
[392029187,1761109925641,370.78400068,0.00034274,30]
[392029252,1761110708563,40000.0,0.00015,2]
[392029253,1761110709385,-270.02332026,0.00015,2]
[392029376,1761111032205,-150.0,0.00014998,2]
[392029377,1761111032215,-179.95993737,0.00014999,2]
[392029378,1761111032226,-211.78448581,0.00014999,2]
[392029379,1761111032235,-500.0,0.00014999,2]
[392029380,1761111032245,-177.28028286,0.00014999,2]
[392029381,1761111032254,-220.40737409,0.00014999,2]
[392029382,1761111032263,-500.0,0.00014999,2]
[392029383,1761111032272,-489.90362176,0.00014999,2]
[392029384,1761111032281,-5014.92,0.00014999,2]
[392029385,1761111032290,-6303.28337985,0.00015,2]
[392029386,1761111032302,-943.03470804,0.00015,2]
[392029387,1761111032313,-1223.29132686,0.00015,2]
[392029388,1761111032323,-4331.2,0.00015,2]
[392029389,1761111032335,-6894.34816185,0.00015,2]
[392029390,1761111032355,-112612.56677781,0.00015,2]
[392029392,1761111032366,-5588.25297817,0.00015,2]
[392029393,1761111032377,-441.68914908,0.00015,2]
[392029394,1761111032394,-343.24244796,0.00015,2]
[392029395,1761111032405,-453.76047859,0.00015,2]
[392029396,1761111032417,-2402.399985,0.00015,2]
[392029397,1761111032429,-333.6739651,0.00015,2]
[392029398,1761111032440,-783.23866056,0.00015,2]
[392029399,1761111032452,-2923.86007476,0.00015,2]
[392029415,1761111036135,-2861.97121494,0.00015,2]
[392029503,1761111038143,-4034.70999996,0.00015,2]
[392029504,1761111038204,-757.43452346,0.00015,2]
[392029505,1761111038264,-1498.3175714,0.00015,2]
[392029506,1761111038326,-6911.74721087,0.00015,2]
[392029507,1761111038338,-7498.01818625,0.00015,2]
[392029508,1761111038354,-2551.90752996,0.00015,2]
[392029509,1761111038366,-1184.60746999,0.00015,2]
[392029510,1761111038378,-782.21538297,0.00015,2]
[392029711,1761111040342,-66119.00074402,0.00015,2]
[392029713,1761111040352,-5073.50806795,0.00015652,2]
[392029715,1761111040366,-273.82,0.00015752,2]
[392029717,1761111040376,-250.0,0.00016498,2]
[392029719,1761111040386,-250.0,0.00016499,2]
[392029721,1761111040395,-250.0,0.00016499,2]
[392029723,1761111040405,-250.0,0.00017,2]
[392029725,1761111040414,-5073.50806792,0.00017555,2]
[392029727,1761111040424,-300.0,0.0001876,2]
[392029729,1761111040434,-5073.50806792,0.00019457,2]
[392029731,1761111040443,-5073.50806792,0.0002136,2]
[392029733,1761111040453,-153.0,0.00022305,2]
[392029736,1761111040463,-153.0,0.00022305,2]
[392029738,1761111040472,-153.0,0.00022305,2]
[392029740,1761111040482,-153.0,0.00022305,2]
[392029742,1761111040492,-153.0,0.00022305,2]
[392029744,1761111040502,-153.0,0.00022305,2]
[392029746,1761111040511,-153.0,0.00022305,2]
[392029748,1761111040520,-165.37,0.00023052,2]
[392029750,1761111040531,-5073.50806792,0.00023263,2]
[392029752,1761111040540,-150.0,0.00023902,2]
[392029754,1761111040549,-1999.342437,0.00025,7]
[392029756,1761111040559,-5073.50806792,0.00025165,2]
[392029758,1761111040568,-458.93241324,0.00025319,2]
[392029760,1761111040578,-313.7017338,0.00026662,2]
[392029762,1761111040587,-318.0,0.00027,2]
[392029764,1761111040596,-5073.50806792,0.00027068,2]
[392029766,1761111040606,-999.99,0.00027397,2]
[392029768,1761111040618,-4946.41,0.00027397,2]
[392029770,1761111040627,-9723.79,0.00027397,2]
[392029772,1761111040637,-250.0,0.00027593,7]
[392029773,1761111040646,-192.55336397,0.00027663,2]
[392029776,1761111040656,-11985.0244211,0.0002799,2]
[392029778,1761111040666,-4954.05926989,0.00028,2]
[392029779,1761111040675,-48910.38714504,0.00028,2]
[392029781,1761111040685,-160.0,0.00028,2]
[392029784,1761111040694,-300.0,0.00028213,7]
[392029786,1761111040703,-197.04338459,0.00028253,4]
[392029788,1761111040713,-627.0,0.00028328,2]
[392029790,1761111040722,-164.63627997,0.00028342,2]
[392029792,1761111040731,-151.0,0.00028342,2]
[392029794,1761111040741,-151.0,0.00028342,2]
[392029795,1761111040750,-151.0,0.00028342,2]
[392029797,1761111040759,-210.65546756,0.00028342,2]
[392029799,1761111040769,-11985.0244211,0.00028349,2]
[392029801,1761111040778,-1591.0,0.00028359,2]
[392029803,1761111040788,-605.0,0.00028359,2]
[392029805,1761111040797,-1311.0,0.00028359,2]
[392029807,1761111040806,-214.111,0.00028359,2]
[392029809,1761111040815,-817.0,0.00028359,2]
[392029811,1761111040824,-218.66,0.00028359,7]
[392029813,1761111040833,-2548.0,0.00028359,2]
[392029815,1761111040842,-2015.858,0.00028359,2]
[392029817,1761111040851,-818.0,0.00028359,2]
[392029820,1761111040864,-2592.0,0.00028359,2]
[392029821,1761111040873,-3411.0,0.00028359,2]
[392029824,1761111040882,-4615.5,0.00028476,10]
[392029826,1761111040895,-626.0,0.00028524,2]
[392029828,1761111040904,-218.66,0.00028633,7]
[392029830,1761111040913,-13091.7603348,0.0002875,2]
[392029832,1761111040922,-6130.88560805,0.0002876,2]
[392029834,1761111040932,-627.0,0.00028837,7]
[392029836,1761111040942,-627.0,0.00028849,2]
[392029838,1761111040953,-218.66,0.00028907,7]
[392029840,1761111040963,-5888.0,0.0002891,2]
[392029842,1761111040972,-626.0,0.00028962,2]
[392029844,1761111040983,-1032.881,0.00028962,21]
[392029846,1761111040993,-5073.50806792,0.00028971,2]
[392029848,1761111041003,-107865.21979,0.0002899,2]
[392029850,1761111041012,-198101.27881735,0.00029,2]
[392029852,1761111041024,-2070.0,0.00029061,2]
[392029854,1761111041033,-626.0,0.00029143,7]
[392029856,1761111041043,-218.66,0.00029181,7]
[392029858,1761111041052,-150.0,0.00029226,2]
[392029860,1761111041062,-150.0,0.00029226,2]
[392029862,1761111041071,-153.0,0.00029226,30]
[392029864,1761111041080,-153.0,0.00029226,30]
[392029867,1761111041093,-153.0,0.00029226,30]
[392029870,1761111041110,-2437.95551232,0.00029417,2]
[392029872,1761111041126,-218.68720165,0.00029455,7]
[392029875,1761111041139,-1000.0,0.00029484,2]
[392029877,1761111041152,-85646.21743092,0.000295,2]
[392030153,1761111043505,-2052.0,0.00028359,2]
[392030157,1761111043518,-26813.4319515,0.000295,2]
[392030163,1761111043533,-4024.8295,0.000295,2]
[392030194,1761111043675,-552.7,0.000295,2]
[392030197,1761111043689,-38199.999998,0.000295,2]
[392030202,1761111043704,-38500.00000089,0.000295,2]
[392030209,1761111043735,-1085.1507,0.000295,2]
[392030551,1761111046869,-153.0,0.00022305,2]
[392030553,1761111046879,-36079.86418507,0.000295,2]
[392030555,1761111046888,-627.0,0.00029517,2]
[392030557,1761111046897,-626.0,0.00029532,2]
[392030559,1761111046906,-626.0,0.00029625,2]
[392030561,1761111046915,-165.25,0.00029673,2]
[392030563,1761111046924,-532.13515562,0.00029679,7]
[392030565,1761111046933,-500.0,0.00029679,7]
[392030567,1761111046943,-169.34231845,0.00029679,7]
[392030569,1761111046954,-500.0,0.00029679,7]
[392030571,1761111046967,-500.0,0.00029679,7]
[392030573,1761111046976,-500.0,0.00029679,7]
[392030576,1761111046987,-500.0,0.00029679,7]
[392030578,1761111046996,-500.0,0.00029679,7]
[392030580,1761111047006,-500.0,0.00029679,7]
[392030582,1761111047015,-500.0,0.00029679,7]
[392030584,1761111047028,-500.0,0.00029679,7]
[392030586,1761111047037,-500.0,0.00029679,7]
[392030588,1761111047046,-500.0,0.00029679,7]
[392030590,1761111047055,-408.40625967,0.00029679,7]
[392030592,1761111047065,-503.16512336,0.00029679,7]
[392030594,1761111047074,-500.0,0.00029679,7]
[392030596,1761111047084,-500.0,0.00029679,7]
[392030598,1761111047093,-500.0,0.00029679,7]
[392030600,1761111047103,-709.12973057,0.00029679,7]
[392030602,1761111047112,-500.0,0.00029679,7]
[392030604,1761111047122,-500.0,0.00029679,7]
[392030606,1761111047131,-500.0,0.00029679,7]
[392030608,1761111047140,-500.0,0.00029679,7]
[392030610,1761111047150,-892.44005182,0.00029679,7]
[392030612,1761111047160,-626.0,0.00029707,2]
[392030614,1761111047169,-152.0,0.00029778,3]
[392030616,1761111047179,-11985.0244211,0.00029833,2]
[392030618,1761111047189,-3081.0,0.00029843,2]
[392030620,1761111047198,-666.0,0.00029848,3]
[392030622,1761111047208,-372.79494855,0.00029921,2]
[392030624,1761111047219,-626.0,0.00029922,7]
[392030626,1761111047229,-626.0,0.00029962,2]
[392030628,1761111047238,-626.0,0.00029974,2]
[392030630,1761111047247,-162.99050684,0.0003,30]
[392030632,1761111047256,-286.68710496,0.0003013,2]
[392030634,1761111047266,-4986.76906127,0.00030142,2]
[392030636,1761111047276,-626.0,0.00030147,2]
[392030638,1761111047286,-150.0,0.00030148,60]
[392030641,1761111047295,-500.0,0.00030148,2]
[392030643,1761111047306,-500.0,0.00030148,2]
[392030645,1761111047316,-150.0,0.00030148,2]
[392030647,1761111047326,-626.0,0.00030148,2]
[392030649,1761111047338,-626.0,0.0003015,2]
[392030651,1761111047348,-341.85,0.00030154,2]
[392030653,1761111047358,-274.02345825,0.00030203,60]
[392030655,1761111047368,-500.0,0.00030203,2]
[392030657,1761111047378,-500.0,0.00030203,2]
[392030659,1761111047388,-150.0,0.00030203,2]
[392030662,1761111047398,-2070.0,0.00030228,7]
[392030664,1761111047407,-10315.52767449,0.00030232,2]
[392030666,1761111047420,-3363.20311005,0.00030232,2]
[392030670,1761111047451,-3796.15,0.00030232,2]
[392030674,1761111047472,-299.85000673,0.00030232,2]
[392030758,1761111063643,557.61522968,0.00024536,120]
[392030759,1761111116608,5000.0,0.00034273,120]
[392030760,1761111133400,411.80132182,0.00034273,120]
[392030765,1761111269373,-500.0,0.00014999,2]
[392030766,1761111269400,-500.0,0.00014999,2]
[392030772,1761111453181,296.53,0.00013699,2]
[392030777,1761111572858,500.0,0.00014999,2]
[392030783,1761111734759,277.85959667,0.00014029,2]
[392030798,1761112158697,35317.52,0.00034271,30]
[392030804,1761112182783,1884.70949251,0.00014,2]
[392030824,1761112231460,-296.53,0.00020187,2]
[392030825,1761112231469,-250.0,0.00021251,2]
[392030826,1761112231478,-250.0,0.00022206,2]
[392030827,1761112231488,-153.0,0.00022314,2]
[392030828,1761112231498,-152.65,0.00025402,2]
[392030829,1761112231507,-9.20609621,0.00026676,2]
[392030830,1761112231518,-287.32390379,0.00026676,2]
[392030831,1761112231527,-38.690803,0.00027671,7]
[392030832,1761112231549,-160.309197,0.00027671,7]
[392030833,1761112231558,-322.5098371,0.00027945,8]
[392030834,1761112231567,-2550.302653,0.00027979,2]
[392030835,1761112231577,-166.66,0.0002812,30]
[392030836,1761112231585,-150.0,0.00028471,2]
[392030837,1761112231595,-200.0,0.00028485,2]
[392030838,1761112231605,-166.66,0.00028712,30]
[392030839,1761112231614,-778.67960918,0.00028974,2]
[392030840,1761112231623,-1250.0,0.00029079,4]
[392030841,1761112231632,-1195.15,0.00029133,2]
[392030842,1761112231641,-773.0,0.00029172,2]
[392030843,1761112231650,-157.0,0.00029178,2]
[392030844,1761112231659,-773.0,0.00029179,7]
[392030845,1761112231669,-365.8786399,0.00029194,2]
[392030846,1761112231677,-166.66,0.00029304,30]
[392030847,1761112231687,-776.0,0.00029316,2]
[392030848,1761112231696,-773.0,0.00029385,2]
[392030849,1761112231705,-173.0,0.00029405,2]
[392030850,1761112231714,-776.0,0.00029405,2]
[392030851,1761112231724,-984.832,0.00029414,22]
[392030852,1761112231732,-776.0,0.00029414,2]
[392030853,1761112231741,-175.31,0.00029466,2]
[392030854,1761112231751,-773.0,0.00029478,2]
[392030855,1761112231760,-428.2123084,0.00029499,2]
[392030856,1761112231769,-776.0,0.00029747,7]
[392030857,1761112231778,-500.0,0.00029749,2]
[392030858,1761112231787,-199.91984723,0.00029749,2]
[392030859,1761112231797,-500.0,0.00029749,2]
[392030860,1761112231806,-500.0,0.00029749,2]
[392030861,1761112231815,-500.0,0.00029749,2]
[392030862,1761112231824,-500.0,0.00029749,2]
[392030863,1761112231833,-500.0,0.00029749,2]
[392030864,1761112231843,-500.0,0.00029749,2]
[392030865,1761112231852,-500.0,0.00029749,2]
[392030867,1761112231861,-500.0,0.00029749,2]
[392030869,1761112231870,-500.0,0.00029749,2]
[392030870,1761112231879,-500.0,0.00029749,2]
[392030873,1761112231888,-500.0,0.00029749,2]
[392030874,1761112231897,-500.0,0.00029749,2]
[392030876,1761112231906,-500.0,0.00029749,2]
[392030878,1761112231917,-500.0,0.00029749,2]
[392030880,1761112231926,-500.0,0.00029749,2]
[392030882,1761112231935,-500.0,0.00029749,2]
[392030884,1761112231944,-500.0,0.00029749,2]
[392030886,1761112231953,-500.0,0.00029749,2]
[392030888,1761112231963,-500.0,0.00029749,2]
[392030890,1761112231972,-500.0,0.00029749,2]
[392030892,1761112231980,-500.0,0.00029749,2]
[392030894,1761112231988,-500.0,0.00029749,2]
[392030895,1761112231997,-500.0,0.00029749,2]
[392030896,1761112232006,-500.0,0.00029749,2]
[392030898,1761112232015,-1891.204029,0.0002975,2]
[392030900,1761112232024,-70230.787665,0.0002975,2]
[392030902,1761112232036,-7739.7100345,0.0002975,2]
[392030905,1761112232045,-4923.5636932,0.0002975,2]
[392030906,1761112232055,-2678.84984145,0.00029782,2]
[392030907,1761112232064,-1250.0,0.00029782,4]
[392030908,1761112232073,-26489.4397131,0.00029782,2]
[392030909,1761112232083,-743.15630909,0.000298,2]
[392030910,1761112232093,-250.0,0.00029831,2]
[392030911,1761112232103,-292.41183234,0.00029864,2]
[392030912,1761112232113,-2278.19696577,0.00029882,2]
[392030913,1761112232136,-802.80303423,0.00029882,2]
[392030914,1761112232145,-1000.0,0.00029882,2]
[392030915,1761112232155,-1000.0,0.00029882,2]
[392030916,1761112232164,-1000.0,0.00029882,2]
[392030917,1761112232173,-657.19696576,0.00029882,2]
[392031120,1761112239559,-342.80303424,0.00029882,2]
[392031122,1761112239568,-122.72799134,0.00029882,2]
[392031125,1761112239592,-877.27200866,0.00029882,2]
[392031127,1761112239601,-1000.0,0.00029882,2]
[392031129,1761112239610,-1000.0,0.00029882,2]
[392031131,1761112239619,-1000.0,0.00029882,2]
[392031133,1761112239628,-1000.0,0.00029882,2]
[392031135,1761112239637,-1000.0,0.00029882,2]
[392031137,1761112239647,-1000.0,0.00029882,2]
[392031139,1761112239656,-1000.0,0.00029882,2]
[392031141,1761112239664,-1000.0,0.00029882,2]
[392031143,1761112239675,-1000.0,0.00029882,2]
[392031145,1761112239684,-1000.0,0.00029882,2]
[392031147,1761112239693,-1000.0,0.00029882,2]
[392031149,1761112239703,-1000.0,0.00029882,2]
[392031152,1761112239712,-1000.0,0.00029882,2]
[392031154,1761112239721,-1000.0,0.00029882,2]
[392031155,1761112239730,-1000.0,0.00029882,2]
[392031157,1761112239739,-1000.0,0.00029882,2]
[392031159,1761112239748,-1000.0,0.00029882,2]
[392031161,1761112239758,-1000.0,0.00029882,2]
[392031163,1761112239767,-1000.0,0.00029882,2]
[392031165,1761112239776,-1000.0,0.00029882,2]
[392031167,1761112239785,-1000.0,0.00029882,2]
[392031169,1761112239794,-1000.0,0.00029882,2]
[392031171,1761112239803,-1000.0,0.00029882,2]
[392031173,1761112239814,-1000.0,0.00029882,2]
[392031175,1761112239823,-1000.0,0.00029882,2]
[392031177,1761112239832,-1000.0,0.00029882,2]
[392031179,1761112239841,-1000.0,0.00029882,2]
[392031181,1761112239850,-1000.0,0.00029882,2]
[392031183,1761112239859,-1000.0,0.00029882,2]
[392031185,1761112239868,-1000.0,0.00029882,2]
[392031187,1761112239877,-1000.0,0.00029882,2]
[392031189,1761112239886,-1000.0,0.00029882,2]
[392031191,1761112239895,-1000.0,0.00029882,2]
[392031193,1761112239904,-1000.0,0.00029882,2]
[392031195,1761112239913,-1000.0,0.00029882,2]
[392031197,1761112239922,-1000.0,0.00029882,2]
[392031199,1761112239932,-1000.0,0.00029882,2]
[392031201,1761112239941,-1000.0,0.00029882,2]
[392031203,1761112239950,-1000.0,0.00029882,2]
[392031205,1761112239960,-1000.0,0.00029882,2]
[392031207,1761112239969,-1000.0,0.00029882,2]
[392031209,1761112239978,-1000.0,0.00029882,2]
[392031211,1761112239987,-1000.0,0.00029882,2]
[392031213,1761112239995,-1000.0,0.00029882,2]
[392031215,1761112240004,-1000.0,0.00029882,2]
[392031217,1761112240013,-1096.0,0.00029882,2]
[392031219,1761112240023,-3411.0,0.00029882,2]
[392031221,1761112240032,-572.0,0.00029882,2]
[392031223,1761112240042,-818.0,0.00029882,2]
[392031225,1761112240051,-2052.0,0.00029882,2]
[392031227,1761112240060,-605.0,0.00029882,2]
[392031228,1761112240069,-1318.298,0.00029882,2]
[392031230,1761112240079,-218.07525768,0.00029882,2]
[392031233,1761112240094,-770.31914986,0.00029882,2]
[392031236,1761112240109,-277.08062615,0.00029882,2]
[392031238,1761112240120,-325.52496631,0.00029882,2]
[392031240,1761112240129,-1269.0,0.00029882,2]
[392031242,1761112240138,-228.72265463,0.00029882,2]
[392031245,1761112240153,-592.27734537,0.00029882,2]
[392031246,1761112240162,-150.0,0.00029882,2]
[392031248,1761112240172,-150.339,0.00029882,2]
[392031250,1761112240181,-2524.34552915,0.00029882,2]
[392031329,1761112242783,-67.65447085,0.00029882,2]
[392031330,1761112242793,-382.54552919,0.00029882,2]
[392031331,1761112242950,-555.73816078,0.00029882,2]
[392031332,1761112243064,-1247.14244649,0.00029882,2]
[392031339,1761112245576,-4291.04686354,0.00029882,2]
[392031340,1761112245586,-560.37,0.00029882,2]
[392031341,1761112245595,-150.562,0.00029882,2]
[392031342,1761112245605,-773.0,0.00029894,2]
[392031343,1761112245614,-166.66,0.00029896,30]
[392031344,1761112245623,-773.0,0.00029927,2]